fUST/lending_fUST_20250217
["ID","MTS","AMOUNT","RATE_DAILY","PERIOD"]
[353348087,1739789438807,-500.0,0.00012772,2]
[353348089,1739789438816,-500.0,0.00012772,2]
[353348091,1739789438826,-500.0,0.00012772,2]
[353348093,1739789438835,-500.0,0.00012772,2]
[353348095,1739789438845,-500.0,0.00012772,2]
[353348097,1739789438854,-500.0,0.00012772,2]
[353348099,1739789438863,-500.0,0.00012772,2]
[353348101,1739789438873,-500.0,0.00012772,2]
[353348103,1739789438882,-500.0,0.00012772,2]
[353348105,1739789438891,-500.0,0.00012772,2]
[353348107,1739789438900,-500.0,0.00012772,2]
[353348109,1739789438910,-500.0,0.00012772,2]
[353348111,1739789438920,-500.0,0.00012772,2]
[353348113,1739789438931,-500.0,0.00012772,2]
[353348115,1739789438941,-500.0,0.00012772,2]
[353348117,1739789438951,-500.0,0.00012772,2]
[353348119,1739789438960,-500.0,0.00012772,2]
[353348121,1739789438970,-500.0,0.00012772,2]
[353348123,1739789438978,-500.0,0.00012772,2]
[353348125,1739789438988,-437.50744271,0.00012772,2]
[353348128,1739789438998,-500.0,0.00012772,2]
[353348129,1739789439008,-500.0,0.00012772,2]
[353348132,1739789439017,-500.0,0.00012772,2]
[353348134,1739789439027,-500.0,0.00012772,2]
[353348135,1739789439037,-664.13,0.00012772,2]
[353348137,1739789439046,-500.0,0.00012772,2]
[353348139,1739789439055,-500.0,0.00012772,2]
[353348142,1739789439064,-500.0,0.00012772,2]
[353348144,1739789439073,-500.0,0.00012772,2]
[353348146,1739789439083,-639.45,0.00012772,2]
[353348148,1739789439091,-500.0,0.00012772,2]
[353348150,1739789439101,-500.0,0.00012772,2]
[353348152,1739789439110,-500.0,0.00012772,2]
[353348154,1739789439121,-2024.25,0.00012772,2]
[353348156,1739789439130,-1086.43,0.00012772,2]
[353348158,1739789439139,-18439.32,0.00012772,2]
[353348160,1739789439148,-500.0,0.00012772,2]
[353348162,1739789439157,-907.03,0.00012772,2]
[353348164,1739789439167,-500.0,0.00012772,2]
[353348166,1739789439176,-500.0,0.00012772,2]
[353348168,1739789439185,-500.0,0.00012772,2]
[353348170,1739789439194,-500.0,0.00012772,2]
[353348172,1739789439203,-1077.43,0.00012772,2]
[353348174,1739789439212,-500.0,0.00012772,2]
[353348176,1739789439221,-8231.54,0.00012772,2]
[353348178,1739789439231,-634.59,0.00012772,2]
[353348180,1739789439242,-764.0,0.00012772,2]
[353348182,1739789439251,-500.0,0.00012772,2]
[353348184,1739789439260,-500.0,0.00012772,2]
[353348186,1739789439269,-1168.82,0.00012772,2]
[353348188,1739789439278,-500.0,0.00012772,2]
[353348190,1739789439287,-500.0,0.00012772,2]
[353348192,1739789439297,-987.64,0.00012772,2]
[353348194,1739789439306,-151.0,0.00012772,2]
[353348196,1739789439315,-500.0,0.00012772,2]
[353348198,1739789439324,-500.0,0.00012772,2]
[353348200,1739789439333,-500.0,0.00012772,2]
[353348202,1739789439342,-500.0,0.00012772,2]
[353348204,1739789439351,-500.0,0.00012772,2]
[353348206,1739789439360,-500.0,0.00012772,2]
[353348208,1739789439369,-500.0,0.00012772,2]
[353348210,1739789439378,-500.0,0.00012772,2]
[353348212,1739789439387,-500.0,0.00012772,2]
[353348214,1739789439397,-500.0,0.00012772,2]
[353348216,1739789439407,-500.0,0.00012772,2]
[353348218,1739789439417,-500.0,0.00012772,2]
[353348220,1739789439426,-500.0,0.00012772,2]
[353348222,1739789439435,-890.2,0.00012772,2]
[353348224,1739789439444,-500.0,0.00012772,2]
[353348226,1739789439453,-542.05160605,0.00012772,2]
[353348228,1739789439462,-500.0,0.00012772,2]
[353348230,1739789439471,-500.0,0.00012772,2]
[353348232,1739789439480,-500.0,0.00012772,2]
[353348234,1739789439491,-500.0,0.00012772,2]
[353348236,1739789439500,-2196.56,0.00012772,2]
[353348238,1739789439509,-500.0,0.00012772,2]
[353348240,1739789439518,-500.0,0.00012772,2]
[353348242,1739789439527,-500.0,0.00012772,2]
[353348244,1739789439536,-500.0,0.00012772,2]
[353348246,1739789439545,-500.0,0.00012772,2]
[353348249,1739789439555,-500.0,0.00012772,2]
[353348251,1739789439564,-586.38,0.00012783,2]
[353348253,1739789439573,-1519.72,0.00012783,2]
[353348255,1739789439583,-500.0,0.00012783,2]
[353348257,1739789439592,-1346.53,0.00012783,2]
[353348259,1739789439601,-1250.48,0.00012783,2]
[353348261,1739789439611,-921.77,0.00012783,2]
[353348263,1739789439620,-3771.71,0.00012783,2]
[353348265,1739789439629,-1020.26,0.00012783,2]
[353348267,1739789439639,-579.81,0.00012783,2]
[353348269,1739789439648,-1919.03,0.00012783,2]
[353348271,1739789439657,-1405.66,0.00012783,2]
[353348273,1739789439667,-2632.91,0.00012783,2]
[353348275,1739789439676,-500.0,0.00012783,2]
[353348277,1739789439687,-500.0,0.00012855,2]
[353348279,1739789439696,-500.0,0.00012855,2]
[353348281,1739789439705,-500.0,0.00012855,2]
[353348283,1739789439715,-500.0,0.00012855,2]
[353348285,1739789439724,-500.0,0.00012855,2]
[353348287,1739789439733,-500.0,0.00012855,2]
[353348289,1739789439742,-500.0,0.00012855,2]
[353348291,1739789439751,-500.0,0.00012855,2]
[353348293,1739789439761,-500.0,0.00012855,2]
[353348295,1739789439770,-511.2,0.00012855,2]
[353348297,1739789439779,-500.0,0.00012855,2]
[353348299,1739789439788,-500.0,0.00012855,2]
[353348301,1739789439797,-500.0,0.00012855,2]
[353348303,1739789439807,-500.0,0.00012855,2]
[353348305,1739789439816,-500.0,0.00012855,2]
[353348307,1739789439825,-500.0,0.00012855,2]
[353348316,1739789439834,-500.0,0.00012855,2]
[353348319,1739789439911,-500.0,0.00012855,2]
[353348321,1739789439922,-500.0,0.00012855,2]
[353348323,1739789439937,-500.0,0.00012855,2]
[353348325,1739789439946,-500.0,0.00012855,2]
[353348327,1739789439956,-500.0,0.00012855,2]
[353348329,1739789439965,-664.13,0.00012855,2]
[353348331,1739789439976,-500.0,0.00012855,2]
[353348334,1739789439986,-500.0,0.00012855,2]
[353348337,1739789439995,-500.0,0.00012855,2]
[353348339,1739789440007,-500.0,0.00012855,2]
[353348341,1739789440016,-639.45,0.00012855,2]
[353348343,1739789440026,-500.0,0.00012855,2]
[353348345,1739789440036,-500.0,0.00012855,2]
[353348347,1739789440045,-500.0,0.00012855,2]
[353348349,1739789440055,-2024.25,0.00012855,2]
[353348351,1739789440064,-1086.43,0.00012855,2]
[353348353,1739789440074,-18439.32,0.00012855,2]
[353348355,1739789440083,-373.26,0.00012855,2]
[353348357,1739789440092,-907.03,0.00012855,2]
[353348359,1739789440101,-500.0,0.00012855,2]
[353348361,1739789440111,-500.0,0.00012855,2]
[353348363,1739789440120,-500.0,0.00012855,2]
[353348365,1739789440129,-297.43375054,0.00012855,2]
[353348367,1739789440140,-1077.43,0.00012855,2]
[353348370,1739789440150,-500.0,0.00012855,2]
[353348373,1739789440160,-8231.54,0.00012855,2]
[353348376,1739789440171,-634.59,0.00012855,2]
[353348377,1739789440180,-764.0,0.00012855,2]
[353348379,1739789440189,-500.0,0.00012855,2]
[353348381,1739789440199,-1168.82,0.00012855,2]
[353348383,1739789440208,-500.0,0.00012855,2]
[353348385,1739789440217,-280.56054517,0.00012855,2]
[353348387,1739789440226,-987.64,0.00012855,2]
[353348390,1739789440237,-467.63351307,0.00012855,2]
[353348391,1739789440246,-500.0,0.00012855,2]
[353348393,1739789440255,-500.0,0.00012855,2]
[353348396,1739789440265,-500.0,0.00012855,2]
[353348397,1739789440274,-500.0,0.00012855,2]
[353348399,1739789440283,-500.0,0.00012855,2]
[353348401,1739789440292,-500.0,0.00012855,2]
[353348404,1739789440302,-500.0,0.00012855,2]
[353348406,1739789440311,-500.0,0.00012855,2]
[353348408,1739789440320,-500.0,0.00012855,2]
[353348410,1739789440330,-500.0,0.00012855,2]
[353348412,1739789440339,-500.0,0.00012855,2]
[353348414,1739789440348,-500.0,0.00012855,2]
[353348416,1739789440357,-890.2,0.00012855,2]
[353348418,1739789440367,-500.0,0.00012855,2]
[353348420,1739789440376,-501.99831608,0.00012855,2]
[353348422,1739789440387,-547.20811981,0.00012855,2]
[353348424,1739789440396,-500.0,0.00012855,2]
[353348426,1739789440405,-500.0,0.00012855,2]
[353348428,1739789440414,-2196.56,0.00012855,2]
[353348430,1739789440423,-500.0,0.00012855,2]
[353348432,1739789440432,-500.0,0.00012855,2]
[353348434,1739789440441,-500.0,0.00012855,2]
[353348436,1739789440450,-500.0,0.00012855,2]
[353348438,1739789440459,-500.0,0.00012855,2]
[353348440,1739789440468,-223.14271853,0.00012855,2]
[353348442,1739789440478,-586.38,0.00012865,2]
[353348444,1739789440487,-1519.72,0.00012865,2]
[353348446,1739789440496,-500.0,0.00012865,2]
[353348448,1739789440505,-1346.53,0.00012865,2]
[353348450,1739789440514,-1250.48,0.00012865,2]
[353348452,1739789440526,-921.77,0.00012865,2]
[353348454,1739789440535,-3771.71,0.00012865,2]
[353348456,1739789440545,-1020.26,0.00012865,2]
[353348458,1739789440554,-579.81,0.00012865,2]
[353348459,1739789440563,-1919.03,0.00012865,2]
[353348460,1739789440572,-1405.66,0.00012865,2]
[353348461,1739789440581,-2632.91,0.00012865,2]
[353348462,1739789440591,-500.0,0.00012865,2]
[353348463,1739789440600,-169.75963112,0.000129,2]
[353348464,1739789440609,-6173.49620692,0.00012901,2]
[353348465,1739789440618,-500.0,0.00012937,2]
[353348466,1739789440628,-600.72,0.00012937,2]
[353348467,1739789440637,-500.0,0.00012937,2]
[353348468,1739789440647,-500.0,0.00012937,2]
[353348469,1739789440656,-500.0,0.00012937,2]
[353348470,1739789440666,-594.46,0.00012937,2]
[353348471,1739789440675,-500.0,0.00012937,2]
[353348472,1739789440684,-500.0,0.00012937,2]
[353348473,1739789440693,-500.0,0.00012937,2]
[353348474,1739789440702,-500.0,0.00012937,2]
[353348475,1739789440712,-151.0,0.00012937,2]
[353348476,1739789440721,-151.0,0.00012937,2]
[353348477,1739789440730,-500.0,0.00012937,2]
[353348478,1739789440740,-500.0,0.00012937,2]
[353348479,1739789440749,-500.0,0.00012937,2]
[353348480,1739789440758,-500.0,0.00012937,2]
[353348481,1739789440767,-664.13,0.00012937,2]
[353348482,1739789440777,-500.0,0.00012937,2]
[353348483,1739789440786,-500.0,0.00012937,2]
[353348484,1739789440796,-500.0,0.00012937,2]
[353348485,1739789440805,-500.0,0.00012937,2]
[353348486,1739789440814,-639.45,0.00012937,2]
[353348487,1739789440824,-500.0,0.00012937,2]
[353348488,1739789440834,-500.0,0.00012937,2]
[353348489,1739789440843,-500.0,0.00012937,2]
[353348490,1739789440852,-2024.25,0.00012937,2]
[353348491,1739789440861,-750.97580091,0.00012937,2]
[353348492,1739789440879,-335.45419909,0.00012937,2]
[353348493,1739789440888,-7647.16626539,0.00012937,2]
[353348494,1739789440899,-2310.0,0.00012937,2]
[353348495,1739789440912,-8482.15373461,0.00012937,2]
[353348496,1739789440983,-301.87138777,0.00012937,2]
[353348497,1739789440995,-605.15861223,0.00012937,2]
[353348498,1739789441006,-416.70943644,0.00012937,2]
[353348499,1739789441017,-83.29056356,0.00012937,2]
[353348500,1739789441026,-400.40543644,0.00012937,2]
[353348548,1739789441751,-500.0,0.00011221,2]
[353348550,1739789441761,-509.16908993,0.00011221,2]
[353348552,1739789441771,-500.0,0.00011303,2]
[353348554,1739789441781,-583.89039926,0.00012443,2]
[353348557,1739789441790,-500.0,0.00012444,2]
[353348558,1739789441800,-500.0,0.00012444,2]
[353348561,1739789441809,-500.0,0.00012526,2]
[353348562,1739789441818,-396.66082694,0.00012526,2]
[353348564,1739789441827,-500.0,0.00012608,2]
[353348566,1739789441836,-500.0,0.0001269,2]
[353348568,1739789441846,-500.0,0.00012772,2]
[353348570,1739789441855,-500.0,0.00012855,2]
[353348572,1739789441865,-99.59456356,0.00012937,2]
[353348575,1739789441875,-1077.43,0.00012937,2]
[353348577,1739789441884,-500.0,0.00012937,2]
[353348579,1739789441893,-8231.54,0.00012937,2]
[353348587,1739789441965,-634.59,0.00012937,2]
[353348589,1739789441975,-764.0,0.00012937,2]
[353348591,1739789441984,-1168.82,0.00012937,2]
[353348593,1739789441993,-500.0,0.00012937,2]
[353348595,1739789442003,-987.64,0.00012937,2]
[353348597,1739789442013,-151.0,0.00012937,2]
[353348599,1739789442022,-500.0,0.00012937,2]
[353348601,1739789442031,-500.0,0.00012937,2]
[353348603,1739789442041,-500.0,0.00012937,2]
[353348605,1739789442050,-500.0,0.00012937,2]
[353348607,1739789442060,-500.0,0.00012937,2]
[353348609,1739789442069,-500.0,0.00012937,2]
[353348611,1739789442078,-500.0,0.00012937,2]
[353348613,1739789442088,-500.0,0.00012937,2]
[353348615,1739789442098,-890.2,0.00012937,2]
[353348617,1739789442106,-546.45,0.00012937,2]
[353348619,1739789442116,-2196.56,0.00012937,2]
[353348621,1739789442125,-500.0,0.00012937,2]
[353348623,1739789442134,-500.0,0.00012937,2]
[353348625,1739789442143,-500.0,0.00012937,2]
[353348627,1739789442152,-500.0,0.00012937,2]
[353348629,1739789442161,-586.38,0.00012947,2]
[353348631,1739789442171,-1519.72,0.00012947,2]
[353348633,1739789442180,-437.99,0.00012947,2]
[353348635,1739789442190,-1346.53,0.00012947,2]
[353348637,1739789442199,-1250.48,0.00012947,2]
[353348639,1739789442209,-921.77,0.00012947,2]
[353348641,1739789442218,-3771.71,0.00012947,2]
[353348643,1739789442227,-1020.26,0.00012947,2]
[353348645,1739789442237,-579.81,0.00012947,2]
[353348648,1739789442247,-1919.03,0.00012947,2]
[353348650,1739789442257,-1405.66,0.00012947,2]
[353348652,1739789442267,-2632.91,0.00012947,2]
[353348654,1739789442276,-611.25,0.00012947,2]
[353348656,1739789442286,-151.0,0.00013,2]
[353348658,1739789442295,-500.0,0.00013019,2]
[353348660,1739789442304,-500.0,0.00013019,2]
[353348662,1739789442313,-500.0,0.00013019,2]
[353348664,1739789442322,-500.0,0.00013019,2]
[353348666,1739789442331,-500.0,0.00013019,2]
[353348668,1739789442341,-500.0,0.00013019,2]
[353348670,1739789442350,-151.0,0.00013019,2]
[353348672,1739789442359,-500.0,0.00013019,2]
[353348674,1739789442368,-151.0,0.00013019,2]
[353348676,1739789442377,-500.0,0.00013019,2]
[353348678,1739789442387,-500.0,0.00013019,2]
[353348680,1739789442396,-500.0,0.00013019,2]
[353348682,1739789442406,-466.48,0.00013019,2]
[353348684,1739789442415,-500.0,0.00013019,2]
[353348685,1739789442424,-664.13,0.00013019,2]
[353348686,1739789442434,-500.0,0.00013019,2]
[353348688,1739789442444,-500.0,0.00013019,2]
[353348690,1739789442453,-639.45,0.00013019,2]
[353348692,1739789442462,-500.0,0.00013019,2]
[353348694,1739789442471,-500.0,0.00013019,2]
[353348695,1739789442480,-2024.25,0.00013019,2]
[353348697,1739789442489,-1086.43,0.00013019,2]
[353348699,1739789442499,-18439.32,0.00013019,2]
[353348701,1739789442510,-907.03,0.00013019,2]
[353348703,1739789442519,-500.0,0.00013019,2]
[353348705,1739789442528,-500.0,0.00013019,2]
[353348707,1739789442537,-1077.43,0.00013019,2]
[353348708,1739789442547,-500.0,0.00013019,2]
[353348709,1739789442556,-8231.54,0.00013019,2]
[353348710,1739789442565,-634.59,0.00013019,2]
[353348712,1739789442575,-764.0,0.00013019,2]
[353348714,1739789442584,-1168.82,0.00013019,2]
[353348716,1739789442593,-500.0,0.00013019,2]
[353348718,1739789442602,-987.64,0.00013019,2]
[353348719,1739789442611,-500.0,0.00013019,2]
[353348721,1739789442620,-500.0,0.00013019,2]
[353348722,1739789442629,-500.0,0.00013019,2]
[353348723,1739789442639,-500.0,0.00013019,2]
[353348724,1739789442648,-2003.726907,0.00013019,2]
[353348725,1739789442658,-500.0,0.00013019,2]
[353348726,1739789442668,-2003.726907,0.00013019,2]
[353348727,1739789442678,-500.0,0.00013019,2]
[353348728,1739789442687,-500.0,0.00013019,2]
[353348729,1739789442696,-500.0,0.00013019,2]
[353348730,1739789442705,-890.2,0.00013019,2]
[353348731,1739789442714,-2196.56,0.00013019,2]
[353348732,1739789442723,-500.0,0.00013019,2]
[353348733,1739789442733,-500.0,0.00013019,2]
[353348734,1739789442742,-500.0,0.00013019,2]
[353348735,1739789442751,-500.0,0.00013019,2]
[353348736,1739789442761,-586.38,0.00013029,2]
[353348737,1739789442770,-1519.72,0.00013029,2]
[353348738,1739789442779,-1346.53,0.00013029,2]
[353348739,1739789442789,-921.77,0.00013029,2]
[353348740,1739789442798,-1250.48,0.00013029,2]
[353348741,1739789442807,-3771.71,0.00013029,2]
[353348742,1739789442816,-1020.26,0.00013029,2]
[353348743,1739789442826,-579.81,0.00013029,2]
[353348744,1739789442836,-1919.03,0.00013029,2]
[353348745,1739789442845,-1405.66,0.00013029,2]
[353348746,1739789442908,-2632.91,0.00013029,2]
[353348747,1739789442924,-151.0,0.000131,2]
[353348748,1739789442937,-212.45,0.00013101,2]
[353348749,1739789442947,-534.45,0.00013101,2]
[353348750,1739789442956,-500.0,0.00013101,2]
[353348751,1739789442967,-500.0,0.00013101,2]
[353348752,1739789442975,-500.0,0.00013101,2]
[353348753,1739789442985,-500.0,0.00013101,2]
[353348754,1739789442993,-500.0,0.00013101,2]
[353348755,1739789443003,-500.0,0.00013101,2]
[353348756,1739789443013,-500.0,0.00013101,2]
[353348757,1739789443022,-500.0,0.00013101,2]
[353348758,1739789443031,-500.0,0.00013101,2]
[353348759,1739789443041,-664.13,0.00013101,2]
[353348760,1739789443051,-500.0,0.00013101,2]
[353348761,1739789443060,-639.45,0.00013101,2]
[353348762,1739789443069,-500.0,0.00013101,2]
[353348763,1739789443078,-500.0,0.00013101,2]
[353348764,1739789443087,-2024.25,0.00013101,2]
[353348765,1739789443097,-1086.43,0.00013101,2]
[353348767,1739789443106,-18439.32,0.00013101,2]
[353348769,1739789443117,-907.03,0.00013101,2]
[353348770,1739789443127,-500.0,0.00013101,2]
[353348771,1739789443136,-500.0,0.00013101,2]
[353348772,1739789443146,-1077.43,0.00013101,2]
[353348773,1739789443156,-279.23,0.00013101,2]
[353348774,1739789443167,-8231.54,0.00013101,2]
[353348775,1739789443176,-634.59,0.00013101,2]
[353348776,1739789443185,-764.0,0.00013101,2]
[353348777,1739789443195,-500.0,0.00013101,2]
[353348778,1739789443204,-1168.82,0.00013101,2]
[353348780,1739789443214,-987.64,0.00013101,2]
[353348781,1739789443223,-151.0,0.00013101,2]
[353348783,1739789443233,-500.0,0.00013101,2]
[353348785,1739789443242,-500.0,0.00013101,2]
[353348787,1739789443251,-500.0,0.00013101,2]
[353348789,1739789443260,-500.0,0.00013101,2]
[353348791,1739789443270,-500.0,0.00013101,2]
[353348793,1739789443279,-500.0,0.00013101,2]
[353348795,1739789443289,-500.0,0.00013101,2]
[353348797,1739789443298,-500.0,0.00013101,2]
[353348799,1739789443307,-890.2,0.00013101,2]
[353348801,1739789443317,-2196.56,0.00013101,2]
[353348803,1739789443326,-500.0,0.00013101,2]
[353348805,1739789443336,-500.0,0.00013101,2]
[353348808,1739789443351,-500.0,0.00013101,2]
[353348811,1739789443373,-500.0,0.00013101,2]
[353348814,1739789443391,-586.49,0.00013112,2]
[353348817,1739789443412,-1519.8999999,0.00013112,2]
[353348821,1739789443434,-1346.66,0.00013112,2]
[353348824,1739789443451,-921.78,0.00013112,2]
[353348827,1739789443470,-1250.65,0.00013112,2]
[353348829,1739789443485,-3771.81,0.00013112,2]
[353348832,1739789443503,-1020.39,0.00013112,2]
[353348835,1739789443521,-579.95,0.00013112,2]
[353348839,1739789443542,-1919.13,0.00013112,2]
[353348841,1739789443555,-1405.72,0.00013112,2]
[353348844,1739789443575,-2632.94,0.00013112,2]
[353348847,1739789443590,-2806.8500845,0.00013122,2]
[353348850,1739789443606,-286.152,0.00013151,2]
[353348852,1739789443620,-1311.44150986,0.0001316,2]
[353348855,1739789443634,-500.0,0.00013183,2]
[353348857,1739789443649,-500.0,0.00013183,2]
[353348860,1739789443664,-261.43,0.00013183,2]
[353348862,1739789443679,-500.0,0.00013183,2]
[353348865,1739789443694,-500.0,0.00013183,2]
[353348868,1739789443708,-500.0,0.00013183,2]
[353348871,1739789443723,-500.0,0.00013183,2]
[353348876,1739789443738,-458.44,0.00013183,2]
[353348879,1739789443753,-221.91,0.00013183,2]
[353348882,1739789443768,-664.13,0.00013183,2]
[353348885,1739789443783,-500.0,0.00013183,2]
[353348887,1739789443798,-639.45,0.00013183,2]
[353348890,1739789443808,-500.0,0.00013183,2]
[353348892,1739789443818,-2024.25,0.00013183,2]
[353348894,1739789443827,-1086.43,0.00013183,2]
[353348896,1739789443836,-18439.32,0.00013183,2]
[353348898,1739789443846,-907.03,0.00013183,2]
[353348900,1739789443855,-500.0,0.00013183,2]
[353348902,1739789443864,-1077.43,0.00013183,2]
[353348904,1739789443874,-8231.54,0.00013183,2]
[353348906,1739789443883,-634.59,0.00013183,2]
[353348908,1739789443893,-764.0,0.00013183,2]
[353348910,1739789443903,-500.0,0.00013183,2]
[353348912,1739789443913,-1168.82,0.00013183,2]
[353348914,1739789443923,-987.64,0.00013183,2]
[353348916,1739789443935,-500.0,0.00013183,2]
[353348918,1739789443944,-500.0,0.00013183,2]
[353348936,1739789444107,-500.0,0.00013183,2]
[353348939,1739789444125,-500.0,0.00013183,2]
[353348941,1739789444136,-500.0,0.00013183,2]
[353348943,1739789444146,-500.0,0.00013183,2]
[353348945,1739789444156,-890.2,0.00013183,2]
[353348947,1739789444165,-2196.56,0.00013183,2]
[353348949,1739789444174,-500.0,0.00013183,2]
[353348951,1739789444183,-500.0,0.00013183,2]
[353348953,1739789444193,-626.93165047,0.00013183,2]
[353348955,1739789444202,-151.0,0.000132,2]
[353348958,1739789444212,-151.0,0.00013259,2]
[353348960,1739789444222,-151.0,0.00013259,2]
[353348962,1739789444231,-504.64411049,0.0001326,2]
[353348964,1739789444241,-513.70592896,0.0001326,2]
[353348966,1739789444250,-600.68134578,0.0001326,2]
[353348968,1739789444263,-500.0,0.0001326,2]
[353348970,1739789444273,-500.0,0.0001326,2]
[353348972,1739789444282,-500.0,0.0001326,2]
[353348974,1739789444292,-500.0,0.0001326,2]
[353348976,1739789444301,-500.0,0.0001326,2]
[353348978,1739789444310,-500.0,0.0001326,2]
[353348980,1739789444320,-500.0,0.0001326,2]
[353348981,1739789444331,-500.0,0.0001326,2]
[353348984,1739789444340,-503.97340567,0.0001326,2]
[353348985,1739789444352,-500.0,0.0001326,2]
[353348988,1739789444363,-501.25034893,0.0001326,2]
[353348990,1739789444374,-500.0,0.0001326,2]
[353348992,1739789444383,-500.0,0.0001326,2]
[353348993,1739789444392,-281.37705911,0.0001326,2]
[353348995,1739789444402,-500.0,0.0001326,2]
[353348998,1739789444413,-500.0,0.0001326,2]
[353349000,1739789444423,-500.0,0.0001326,2]
[353349001,1739789444432,-500.0,0.0001326,2]
[353349003,1739789444441,-500.0,0.0001326,2]
[353349005,1739789444450,-512.27553037,0.0001326,2]
[353349007,1739789444459,-500.0,0.0001326,2]
[353349009,1739789444468,-500.0,0.0001326,2]
[353349011,1739789444477,-500.0,0.0001326,2]
[353349013,1739789444487,-500.0,0.0001326,2]
[353349015,1739789444496,-500.0,0.0001326,2]
[353349017,1739789444506,-500.0,0.0001326,2]
[353349020,1739789444515,-500.0,0.0001326,2]
[353349022,1739789444524,-500.0,0.0001326,2]
[353349023,1739789444533,-501.32448758,0.0001326,2]
[353349026,1739789444543,-500.0,0.0001326,2]
[353349028,1739789444553,-500.0,0.0001326,2]
[353349029,1739789444562,-500.0,0.0001326,2]
[353349032,1739789444572,-502.48786225,0.0001326,2]
[353349034,1739789444581,-500.0,0.0001326,2]
[353349036,1739789444590,-502.02962199,0.0001326,2]
[353349038,1739789444599,-501.82882613,0.0001326,2]
[353349040,1739789444609,-500.0,0.0001326,2]
[353349042,1739789444621,-500.0,0.0001326,2]
[353349044,1739789444631,-500.0,0.0001326,2]
[353349046,1739789444641,-500.0,0.0001326,2]
[353349048,1739789444651,-500.0,0.0001326,2]
[353349050,1739789444660,-500.0,0.0001326,2]
[353349052,1739789444671,-500.0,0.0001326,2]
[353349054,1739789444681,-500.0,0.0001326,2]
[353349056,1739789444690,-500.0,0.0001326,2]
[353349058,1739789444699,-500.0,0.0001326,2]
[353349060,1739789444709,-500.0,0.0001326,2]
[353349062,1739789444719,-500.0,0.0001326,2]
[353349064,1739789444729,-500.0,0.0001326,2]
[353349066,1739789444738,-500.0,0.0001326,2]
[353349068,1739789444747,-500.0,0.0001326,2]
[353349070,1739789444757,-500.0,0.0001326,2]
[353349072,1739789444768,-500.0,0.0001326,2]
[353349074,1739789444778,-500.0,0.0001326,2]
[353349076,1739789444787,-500.0,0.0001326,2]
[353349078,1739789444796,-502.00232462,0.0001326,2]
[353349080,1739789444805,-500.0,0.0001326,2]
[353349082,1739789444814,-501.0315484,0.0001326,2]
[353349084,1739789444824,-500.0,0.0001326,2]
[353349086,1739789444833,-500.0,0.0001326,2]
[353349088,1739789444842,-500.0,0.0001326,2]
[353349090,1739789444852,-500.0,0.0001326,2]
[353349092,1739789444861,-500.0,0.0001326,2]
[353349094,1739789444871,-501.57211093,0.0001326,2]
[353349096,1739789444881,-500.0,0.0001326,2]